[Event "Titled Tuesday Blitz August 22 Late 2023"]
[White "KorolDimitriy75"]
[Black "Novikova, Margarita"]
[BlackFideId "14109689"]
[WhiteElo "2353"]
[BlackElo "2174"]
[Result "1-0"]
[Round "7"]
[TimeControl "180+1"]
[Date "2023.08.22"]
[WhiteClock "0:00:04"]
[BlackClock "0:00:03"]
[Board "141"]

1. d4 {[%clk 0:03:00]}  e5 {[%clk 0:02:59]} 2. dxe5 {[%clk 0:03:00]}  Nc6 {[%clk 0:02:59]} 3. Nf3 {[%clk 0:03:00]}  Qe7 {[%clk 0:02:59]} 4. Nc3 {[%clk 0:02:59]}  Nxe5 {[%clk 0:02:58]} 5. Nd5 {[%clk 0:02:59]}  Nxf3+ {[%clk 0:02:59]} 6. gxf3 {[%clk 0:03:00]}  Qd8 {[%clk 0:02:58]} 7. Bf4 {[%clk 0:02:59]}  d6 {[%clk 0:02:57]} 8. e4 {[%clk 0:02:54]}  c6 {[%clk 0:02:57]} 9. Nc3 {[%clk 0:02:54]}  Be6 {[%clk 0:02:54]} 10. Qd2 {[%clk 0:02:52]}  Qb6 {[%clk 0:02:47]} 11. O-O-O {[%clk 0:02:47]}  O-O-O {[%clk 0:02:46]} 12. Rg1 {[%clk 0:02:25]}  h6 {[%clk 0:02:38]} 13. Kb1 {[%clk 0:02:22]}  g5 {[%clk 0:02:38]} 14. Be3 {[%clk 0:02:22]}  Qa5 {[%clk 0:02:34]} 15. Bd4 {[%clk 0:02:04]}  Rh7 {[%clk 0:02:23]} 16. a3 {[%clk 0:01:21]}  Bg7 {[%clk 0:02:16]} 17. Bxg7 {[%clk 0:01:17]}  Rxg7 {[%clk 0:02:16]} 18. f4 {[%clk 0:01:15]}  f6 {[%clk 0:02:11]} 19. h4 {[%clk 0:01:08]}  Ne7 {[%clk 0:02:03]} 20. f5 {[%clk 0:00:58]}  Bg8 {[%clk 0:02:00]} 21. Be2 {[%clk 0:00:50]}  d5 {[%clk 0:01:57]} 22. Qd4 {[%clk 0:00:29]}  Rf7 {[%clk 0:01:44]} 23. Qe3 {[%clk 0:00:23]}  Qb6 {[%clk 0:01:34]} 24. Qxb6 {[%clk 0:00:22]}  axb6 {[%clk 0:01:34]} 25. Bh5 {[%clk 0:00:19]}  Rff8 {[%clk 0:01:33]} 26. f3 {[%clk 0:00:19]}  d4 {[%clk 0:01:29]} 27. Ne2 {[%clk 0:00:19]}  c5 {[%clk 0:01:29]} 28. Rh1 {[%clk 0:00:17]}  Bc4 {[%clk 0:01:21]} 29. Rde1 {[%clk 0:00:16]}  Nc6 {[%clk 0:01:18]} 30. Ng3 {[%clk 0:00:15]}  Ne5 {[%clk 0:01:17]} 31. Bg4 {[%clk 0:00:13]}  d3 {[%clk 0:01:15]} 32. cxd3 {[%clk 0:00:12]}  Nxd3 {[%clk 0:01:14]} 33. Reg1 {[%clk 0:00:10]}  Nf2 {[%clk 0:01:12]} 34. Rh2 {[%clk 0:00:10]}  Nd3 {[%clk 0:01:02]} 35. hxg5 {[%clk 0:00:10]}  hxg5 {[%clk 0:01:01]} 36. Rh6 {[%clk 0:00:09]}  Ne5 {[%clk 0:00:58]} 37. Nh5 {[%clk 0:00:08]}  Rd6 {[%clk 0:00:55]} 38. Rc1 {[%clk 0:00:06]}  Bd3+ {[%clk 0:00:54]} 39. Ka1 {[%clk 0:00:05]}  Be2 {[%clk 0:00:53]} 40. Rc3 {[%clk 0:00:04]}  Kd7 {[%clk 0:00:48]} 41. Ka2 {[%clk 0:00:04]}  Ke7 {[%clk 0:00:48]} 42. Rh7+ {[%clk 0:00:04]}  Rf7 {[%clk 0:00:47]} 43. Rh8 {[%clk 0:00:05]}  Bc4+ {[%clk 0:00:43]} 44. b3 {[%clk 0:00:05]}  Rd2+ {[%clk 0:00:39]} 45. Kb1 {[%clk 0:00:05]}  Bd3+ {[%clk 0:00:38]} 46. Kc1 {[%clk 0:00:05]}  Rh2 {[%clk 0:00:34]} 47. Rb8 {[%clk 0:00:04]}  Kd6 {[%clk 0:00:30]} 48. Rd8+ {[%clk 0:00:03]}  Kc7 {[%clk 0:00:29]} 49. Rdxd3 {[%clk 0:00:03]}  Nxd3+ {[%clk 0:00:24]} 50. Rxd3 {[%clk 0:00:04]}  Ra2 {[%clk 0:00:23]} 51. a4 {[%clk 0:00:03]}  Rh2 {[%clk 0:00:22]} 52. Rd2 {[%clk 0:00:03]}  Rh1+ {[%clk 0:00:22]} 53. Kc2 {[%clk 0:00:03]}  Kc6 {[%clk 0:00:22]} 54. Rd8 {[%clk 0:00:03]}  b5 {[%clk 0:00:21]} 55. axb5+ {[%clk 0:00:02]}  Kxb5 {[%clk 0:00:22]} 56. Rd6 {[%clk 0:00:03]}  Rh2+ {[%clk 0:00:22]} 57. Kc3 {[%clk 0:00:03]}  Ka5 {[%clk 0:00:21]} 58. Nxf6 {[%clk 0:00:03]}  b5 {[%clk 0:00:20]} 59. Nd5 {[%clk 0:00:03]}  b4+ {[%clk 0:00:20]} 60. Kd3 {[%clk 0:00:02]}  Rb2 {[%clk 0:00:19]} 61. Rc6 {[%clk 0:00:01]}  Rxb3+ {[%clk 0:00:19]} 62. Kc4 {[%clk 0:00:01]}  Rb1 {[%clk 0:00:18]} 63. Rxc5+ {[%clk 0:00:01]}  Ka6 {[%clk 0:00:19]} 64. Rc6+ {[%clk 0:00:01]}  Kb7 {[%clk 0:00:19]} 65. Rb6+ {[%clk 0:00:01]}  Ka7 {[%clk 0:00:19]} 66. Rxb4 {[%clk 0:00:02]}  Rc1+ {[%clk 0:00:19]} 67. Kd4 {[%clk 0:00:02]}  Rd1+ {[%clk 0:00:19]} 68. Ke5 {[%clk 0:00:02]}  Rc1 {[%clk 0:00:17]} 69. Ke6 {[%clk 0:00:03]}  Rh7 {[%clk 0:00:15]} 70. f6 {[%clk 0:00:04]}  Rh6 {[%clk 0:00:15]} 71. Ke7 {[%clk 0:00:03]}  Rc8 {[%clk 0:00:15]} 72. f7 {[%clk 0:00:03]}  Rhh8 {[%clk 0:00:16]} 73. Bxc8 {[%clk 0:00:03]}  Rxc8 {[%clk 0:00:16]} 74. f8=Q {[%clk 0:00:04]}  Rc7+ {[%clk 0:00:05]} 75. Nxc7 {[%clk 0:00:03]}  g4 {[%clk 0:00:03]} 76. Qa8# {[%clk 0:00:04]} 1-0


[Site "https://www.chess.com"]

[Event "Titled Tuesday Blitz August 22 Late 2023"]
[White "Kula, Robert"]
[Black "Fernandez, Maria Florencia"]
[WhiteFideId "1101218"]
[BlackFideId "116459"]
[WhiteElo "2148"]
[BlackElo "2347"]
[Result "1-0"]
[Round "7"]
[TimeControl "180+1"]
[Date "2023.08.22"]
[WhiteClock "0:00:18"]
[BlackClock "0:00:04"]
[Board "142"]

1. e4 {[%clk 0:02:54]}  c5 {[%clk 0:02:59]} 2. Nf3 {[%clk 0:02:52]}  d6 {[%clk 0:02:59]} 3. d4 {[%clk 0:02:41]}  cxd4 {[%clk 0:02:54]} 4. Nxd4 {[%clk 0:02:41]}  Nf6 {[%clk 0:02:53]} 5. Nc3 {[%clk 0:02:40]}  g6 {[%clk 0:02:40]} 6. Bc4 {[%clk 0:02:37]}  Bg7 {[%clk 0:02:38]} 7. O-O {[%clk 0:02:36]}  O-O {[%clk 0:02:38]} 8. Bg5 {[%clk 0:02:34]}  h6 {[%clk 0:02:35]} 9. Bh4 {[%clk 0:02:33]}  Nc6 {[%clk 0:02:34]} 10. Nb3 {[%clk 0:02:07]}  Ne5 {[%clk 0:02:26]} 11. Be2 {[%clk 0:02:07]}  Be6 {[%clk 0:02:26]} 12. f4 {[%clk 0:02:05]}  Nc4 {[%clk 0:01:45]} 13. Bxc4 {[%clk 0:01:58]}  Bxc4 {[%clk 0:01:44]} 14. Re1 {[%clk 0:01:55]}  a5 {[%clk 0:01:37]} 15. Qf3 {[%clk 0:01:44]}  a4 {[%clk 0:01:34]} 16. Nd4 {[%clk 0:01:43]}  Qb6 {[%clk 0:01:29]} 17. Bf2 {[%clk 0:01:42]}  Qa5 {[%clk 0:01:07]} 18. e5 {[%clk 0:01:36]}  dxe5 {[%clk 0:01:04]} 19. Rxe5 {[%clk 0:01:34]}  Qb4 {[%clk 0:00:55]} 20. b3 {[%clk 0:01:17]}  axb3 {[%clk 0:00:54]} 21. cxb3 {[%clk 0:01:17]}  Ba6 {[%clk 0:00:39]} 22. a3 {[%clk 0:00:57]}  Qd6 {[%clk 0:00:38]} 23. Ncb5 {[%clk 0:00:56]}  Bxb5 {[%clk 0:00:35]} 24. Nxb5 {[%clk 0:00:56]}  Qd2 {[%clk 0:00:35]} 25. Rd1 {[%clk 0:00:52]}  Qb2 {[%clk 0:00:33]} 26. Bd4 {[%clk 0:00:49]}  Qc2 {[%clk 0:00:28]} 27. Rc1 {[%clk 0:00:41]}  Rac8 {[%clk 0:00:13]} 28. Rxc2 {[%clk 0:00:40]}  Rxc2 {[%clk 0:00:14]} 29. h3 {[%clk 0:00:37]}  e6 {[%clk 0:00:13]} 30. Rc5 {[%clk 0:00:36]}  Rd2 {[%clk 0:00:12]} 31. Be5 {[%clk 0:00:34]}  Nd5 {[%clk 0:00:12]} 32. Bxg7 {[%clk 0:00:30]}  Kxg7 {[%clk 0:00:13]} 33. Nc7 {[%clk 0:00:29]}  Rd8 {[%clk 0:00:10]} 34. Nxd5 {[%clk 0:00:28]}  R8xd5 {[%clk 0:00:11]} 35. Rxd5 {[%clk 0:00:28]}  Rxd5 {[%clk 0:00:11]} 36. Qc3+ {[%clk 0:00:29]}  Kh7 {[%clk 0:00:10]} 37. Qc7 {[%clk 0:00:29]}  Rf5 {[%clk 0:00:10]} 38. g4 {[%clk 0:00:24]}  Rf6 {[%clk 0:00:07]} 39. Kg2 {[%clk 0:00:24]}  g5 {[%clk 0:00:05]} 40. fxg5 {[%clk 0:00:23]}  hxg5 {[%clk 0:00:06]} 41. Qxb7 {[%clk 0:00:23]}  Kg6 {[%clk 0:00:06]} 42. a4 {[%clk 0:00:22]}  Rf4 {[%clk 0:00:07]} 43. a5 {[%clk 0:00:22]}  Rd4 {[%clk 0:00:06]} 44. a6 {[%clk 0:00:22]}  Rd2+ {[%clk 0:00:07]} 45. Kf3 {[%clk 0:00:22]}  f5 {[%clk 0:00:05]} 46. gxf5+ {[%clk 0:00:21]}  exf5 {[%clk 0:00:05]} 47. a7 {[%clk 0:00:20]}  Kh5 {[%clk 0:00:04]} 48. Qh7# {[%clk 0:00:18]} 1-0


[Site "https://www.chess.com"]

[Event "Titled Tuesday Blitz August 22 Late 2023"]
[White "sebastianmarinp"]
[Black "Saucey, Michel"]
[BlackFideId "601845"]
[WhiteElo "2397"]
[BlackElo "2266"]
[Result "1-0"]
[Round "7"]
[TimeControl "180+1"]
[Date "2023.08.22"]
[WhiteClock "0:00:05"]
[BlackClock "0:00:00"]
[Board "145"]

1. d4 {[%clk 0:02:59]}  d5 {[%clk 0:02:59]} 2. c4 {[%clk 0:02:59]}  e6 {[%clk 0:02:59]} 3. Nc3 {[%clk 0:02:59]}  Nf6 {[%clk 0:02:59]} 4. Nf3 {[%clk 0:02:58]}  Bb4 {[%clk 0:02:58]} 5. Qc2 {[%clk 0:02:54]}  dxc4 {[%clk 0:02:54]} 6. Bg5 {[%clk 0:02:45]}  b5 {[%clk 0:02:52]} 7. e4 {[%clk 0:02:43]}  h6 {[%clk 0:02:36]} 8. Bxf6 {[%clk 0:02:35]}  gxf6 {[%clk 0:02:28]} 9. a4 {[%clk 0:02:33]}  c6 {[%clk 0:02:26]} 10. g3 {[%clk 0:02:31]}  Nd7 {[%clk 0:02:12]} 11. Bg2 {[%clk 0:02:30]}  Bb7 {[%clk 0:02:12]} 12. O-O {[%clk 0:02:29]}  a6 {[%clk 0:02:11]} 13. Ne2 {[%clk 0:02:24]}  c5 {[%clk 0:02:07]} 14. d5 {[%clk 0:02:15]}  Ne5 {[%clk 0:02:03]} 15. Nf4 {[%clk 0:02:14]}  Qe7 {[%clk 0:01:39]} 16. Rfd1 {[%clk 0:01:39]}  Nd3 {[%clk 0:01:14]} 17. Nxd3 {[%clk 0:01:28]}  cxd3 {[%clk 0:01:13]} 18. Qxd3 {[%clk 0:01:23]}  c4 {[%clk 0:01:13]} 19. Qe2 {[%clk 0:01:22]}  Rd8 {[%clk 0:01:05]} 20. Nd4 {[%clk 0:01:19]}  Bc5 {[%clk 0:00:54]} 21. axb5 {[%clk 0:00:52]}  Bxd4 {[%clk 0:00:54]} 22. Rxd4 {[%clk 0:00:53]}  axb5 {[%clk 0:00:54]} 23. Qd2 {[%clk 0:00:32]}  Kf8 {[%clk 0:00:48]} 24. Ra7 {[%clk 0:00:22]}  Kg7 {[%clk 0:00:32]} 25. d6 {[%clk 0:00:19]}  Qd7 {[%clk 0:00:31]} 26. e5 {[%clk 0:00:18]}  Rb8 {[%clk 0:00:29]} 27. Rg4+ {[%clk 0:00:18]}  Kf8 {[%clk 0:00:29]} 28. Qf4 {[%clk 0:00:14]}  f5 {[%clk 0:00:20]} 29. Rh4 {[%clk 0:00:13]}  h5 {[%clk 0:00:19]} 30. Qg5 {[%clk 0:00:12]}  Rg8 {[%clk 0:00:18]} 31. Qh6+ {[%clk 0:00:10]}  Ke8 {[%clk 0:00:18]} 32. Qxh5 {[%clk 0:00:08]}  Qc8 {[%clk 0:00:14]} 33. Bxb7 {[%clk 0:00:07]}  Rxb7 {[%clk 0:00:14]} 34. Ra1 {[%clk 0:00:06]}  Rb8 {[%clk 0:00:12]} 35. Qf3 {[%clk 0:00:06]}  Qb7 {[%clk 0:00:11]} 36. Qf4 {[%clk 0:00:06]}  Kd7 {[%clk 0:00:07]} 37. Rh7 {[%clk 0:00:06]}  Rgf8 {[%clk 0:00:07]} 38. Qh6 {[%clk 0:00:06]}  Qd5 {[%clk 0:00:04]} 39. Qf6 {[%clk 0:00:04]}  Kc6 {[%clk 0:00:03]} 40. Rxf7 {[%clk 0:00:04]}  Rxf7 {[%clk 0:00:02]} 41. Qxf7 {[%clk 0:00:05]}  Qxe5 {[%clk 0:00:00]} 42. Qc7+ {[%clk 0:00:05]} 1-0


[Site "https://www.chess.com"]

[Event "Titled Tuesday Blitz August 22 Late 2023"]
[White "Merino Garcia, Rafael II"]
[Black "Kohler, Aran"]
[WhiteFideId "2209128"]
[BlackFideId "1002856"]
[WhiteElo "2359"]
[BlackElo "2246"]
[Result "0-1"]
[Round "7"]
[TimeControl "180+1"]
[Date "2023.08.22"]
[WhiteClock "0:01:29"]
[BlackClock "0:01:06"]
[Board "146"]

1. d4 {[%clk 0:02:52]}  d5 {[%clk 0:02:59]} 2. Nf3 {[%clk 0:02:52]}  c6 {[%clk 0:02:59]} 3. e3 {[%clk 0:02:53]}  Nf6 {[%clk 0:02:59]} 4. c4 {[%clk 0:02:53]}  Bg4 {[%clk 0:02:59]} 5. cxd5 {[%clk 0:02:53]}  Nxd5 {[%clk 0:02:57]} 6. Nbd2 {[%clk 0:02:51]}  e6 {[%clk 0:02:56]} 7. Bd3 {[%clk 0:02:50]}  c5 {[%clk 0:02:43]} 8. O-O {[%clk 0:02:43]}  cxd4 {[%clk 0:02:43]} 9. Qa4+ {[%clk 0:02:43]}  Nd7 {[%clk 0:02:31]} 10. Nxd4 {[%clk 0:02:37]}  Nb6 {[%clk 0:02:20]} 11. Qb3 {[%clk 0:02:33]}  Bh5 {[%clk 0:02:19]} 12. Ne4 {[%clk 0:02:28]}  Be7 {[%clk 0:02:18]} 13. Nxe6 {[%clk 0:02:19]}  fxe6 {[%clk 0:02:14]} 14. Qxe6 {[%clk 0:02:19]}  Nf6 {[%clk 0:01:41]} 15. Bb5+ {[%clk 0:02:16]}  Kf8 {[%clk 0:01:38]} 16. Nxf6 {[%clk 0:02:04]}  Bxf6 {[%clk 0:01:38]} 17. b3 {[%clk 0:02:03]}  Bf7 {[%clk 0:01:29]} 18. Ba3+ {[%clk 0:01:56]}  Kg8 {[%clk 0:01:29]} 19. Qg4 {[%clk 0:01:50]}  Bxa1 {[%clk 0:01:26]} 20. Rxa1 {[%clk 0:01:49]}  Qf6 {[%clk 0:01:26]} 21. Rd1 {[%clk 0:01:46]}  h5 {[%clk 0:01:24]} 22. Qg3 {[%clk 0:01:44]}  Rd8 {[%clk 0:01:22]} 23. Rc1 {[%clk 0:01:42]}  Rh6 {[%clk 0:01:19]} 24. Qc7 {[%clk 0:01:40]}  Rc8 {[%clk 0:01:10]} 25. Qxb7 {[%clk 0:01:31]}  Rxc1+ {[%clk 0:01:09]} 26. Bxc1 {[%clk 0:01:29]}  Qa1 {[%clk 0:01:06]} 0-1


[Site "https://www.chess.com"]

[Event "Titled Tuesday Blitz August 22 Late 2023"]
[White "Fominykh, Maria"]
[Black "Vanek, Tomas"]
[WhiteFideId "4142411"]
[BlackFideId "313459"]
[WhiteElo "2316"]
[BlackElo "2210"]
[Result "0-1"]
[Round "7"]
[TimeControl "180+1"]
[Date "2023.08.22"]
[WhiteClock "0:00:00"]
[BlackClock "0:00:03"]
[Board "148"]

1. d4 {[%clk 0:03:00]}  f5 {[%clk 0:02:58]} 2. Bg5 {[%clk 0:02:59]}  h6 {[%clk 0:02:55]} 3. Bh4 {[%clk 0:02:59]}  g5 {[%clk 0:02:55]} 4. Bg3 {[%clk 0:02:59]}  d6 {[%clk 0:02:48]} 5. e4 {[%clk 0:02:53]}  f4 {[%clk 0:02:19]} 6. Qh5+ {[%clk 0:02:46]}  Kd7 {[%clk 0:02:19]} 7. e5 {[%clk 0:02:09]}  fxg3 {[%clk 0:01:57]} 8. Bc4 {[%clk 0:01:53]}  e6 {[%clk 0:01:45]} 9. hxg3 {[%clk 0:01:40]}  d5 {[%clk 0:01:41]} 10. Bd3 {[%clk 0:01:29]}  Ne7 {[%clk 0:01:35]} 11. f4 {[%clk 0:01:08]}  Qe8 {[%clk 0:01:33]} 12. Qf3 {[%clk 0:00:56]}  Bg7 {[%clk 0:01:29]} 13. Ne2 {[%clk 0:00:37]}  b6 {[%clk 0:01:28]} 14. c4 {[%clk 0:00:25]}  Bb7 {[%clk 0:01:26]} 15. Nbc3 {[%clk 0:00:23]}  Nc8 {[%clk 0:01:17]} 16. cxd5 {[%clk 0:00:22]}  exd5 {[%clk 0:01:14]} 17. f5 {[%clk 0:00:19]}  Bxe5 {[%clk 0:01:11]} 18. dxe5 {[%clk 0:00:18]}  Qxe5 {[%clk 0:01:10]} 19. O-O-O {[%clk 0:00:18]}  Nd6 {[%clk 0:01:09]} 20. Nd4 {[%clk 0:00:16]}  Qxd4 {[%clk 0:01:07]} 21. Bb5+ {[%clk 0:00:15]}  Nxb5 {[%clk 0:01:07]} 22. Rxd4 {[%clk 0:00:15]}  Nxd4 {[%clk 0:01:07]} 23. Qd3 {[%clk 0:00:16]}  c5 {[%clk 0:01:05]} 24. f6 {[%clk 0:00:14]}  Nbc6 {[%clk 0:01:04]} 25. Nxd5 {[%clk 0:00:13]}  Ne5 {[%clk 0:01:03]} 26. Qe3 {[%clk 0:00:11]}  Rae8 {[%clk 0:00:57]} 27. Ne7 {[%clk 0:00:11]}  Ng4 {[%clk 0:00:35]} 28. Qd2 {[%clk 0:00:09]}  Nxf6 {[%clk 0:00:35]} 29. Ng6 {[%clk 0:00:08]}  Rh7 {[%clk 0:00:30]} 30. Rf1 {[%clk 0:00:08]}  Re6 {[%clk 0:00:23]} 31. Nf8+ {[%clk 0:00:08]}  Ke7 {[%clk 0:00:22]} 32. Nxh7 {[%clk 0:00:08]}  Nxh7 {[%clk 0:00:21]} 33. Qf2 {[%clk 0:00:08]}  Nf6 {[%clk 0:00:18]} 34. Re1 {[%clk 0:00:08]}  Ne4 {[%clk 0:00:15]} 35. Qf1 {[%clk 0:00:05]}  Bc6 {[%clk 0:00:12]} 36. b3 {[%clk 0:00:05]}  Bd5 {[%clk 0:00:12]} 37. Qg1 {[%clk 0:00:03]}  Nxg3 {[%clk 0:00:09]} 38. Rxe6+ {[%clk 0:00:03]}  Kxe6 {[%clk 0:00:09]} 39. Qe3+ {[%clk 0:00:03]}  Ne4 {[%clk 0:00:07]} 40. Qh3+ {[%clk 0:00:03]}  Nf5 {[%clk 0:00:06]} 41. g4 {[%clk 0:00:03]}  Nh4 {[%clk 0:00:04]} 42. Qf1 {[%clk 0:00:03]}  Ke5 {[%clk 0:00:05]} 43. Qf8 {[%clk 0:00:03]}  Kd4 {[%clk 0:00:05]} 44. Qxh6 {[%clk 0:00:03]}  Nf3 {[%clk 0:00:05]} 45. Qg7+ {[%clk 0:00:03]}  Ne5 {[%clk 0:00:04]} 46. Qh8 {[%clk 0:00:02]}  Nf2 {[%clk 0:00:04]} 47. Kd2 {[%clk 0:00:02]}  Ne4+ {[%clk 0:00:04]} 48. Ke2 {[%clk 0:00:02]}  Nc3+ {[%clk 0:00:03]} 49. Kf2 {[%clk 0:00:02]}  Ne4+ {[%clk 0:00:03]} 50. Kg2 {[%clk 0:00:01]}  b5 {[%clk 0:00:02]} 51. Kh3 {[%clk 0:00:01]}  c4 {[%clk 0:00:03]} 52. Qg7 {[%clk 0:00:00]}  c3 {[%clk 0:00:03]} 0-1


[Site "https://www.chess.com"]

[Event "Titled Tuesday Blitz August 22 Late 2023"]
[White "Shapiro, Daniel"]
[Black "Capp, Stephen"]
[WhiteFideId "2001780"]
[BlackFideId "2027089"]
[WhiteElo "2278"]
[BlackElo "2185"]
[Result "1-0"]
[Round "7"]
[TimeControl "180+1"]
[Date "2023.08.22"]
[WhiteClock "0:00:05"]
[BlackClock "0:00:05"]
[Board "149"]

1. d4 {[%clk 0:03:00]}  Nf6 {[%clk 0:02:59]} 2. c4 {[%clk 0:02:58]}  e6 {[%clk 0:02:59]} 3. g3 {[%clk 0:02:57]}  Bb4+ {[%clk 0:02:55]} 4. Bd2 {[%clk 0:02:56]}  Qe7 {[%clk 0:02:55]} 5. Bg2 {[%clk 0:02:54]}  Nc6 {[%clk 0:02:55]} 6. Nf3 {[%clk 0:02:54]}  Bxd2+ {[%clk 0:02:53]} 7. Qxd2 {[%clk 0:02:54]}  d6 {[%clk 0:02:53]} 8. O-O {[%clk 0:02:45]}  O-O {[%clk 0:02:53]} 9. Nc3 {[%clk 0:02:45]}  e5 {[%clk 0:02:52]} 10. h3 {[%clk 0:02:31]}  Bf5 {[%clk 0:02:43]} 11. d5 {[%clk 0:02:19]}  Nb8 {[%clk 0:02:38]} 12. Nh4 {[%clk 0:02:15]}  Bd7 {[%clk 0:02:29]} 13. e4 {[%clk 0:02:14]}  a5 {[%clk 0:02:28]} 14. b3 {[%clk 0:02:08]}  Na6 {[%clk 0:02:28]} 15. Rae1 {[%clk 0:01:49]}  Nc5 {[%clk 0:02:27]} 16. f4 {[%clk 0:01:48]}  exf4 {[%clk 0:02:26]} 17. Rxf4 {[%clk 0:01:15]}  Nh5 {[%clk 0:02:20]} 18. Rf3 {[%clk 0:00:58]}  Nxg3 {[%clk 0:02:03]} 19. Rxg3 {[%clk 0:00:21]}  Qxh4 {[%clk 0:02:03]} 20. Qf2 {[%clk 0:00:22]}  Qh6 {[%clk 0:01:55]} 21. e5 {[%clk 0:00:20]}  dxe5 {[%clk 0:01:50]} 22. Qxc5 {[%clk 0:00:19]}  Rae8 {[%clk 0:01:39]} 23. Qxc7 {[%clk 0:00:15]}  Qf4 {[%clk 0:01:24]} 24. Rge3 {[%clk 0:00:15]}  Re7 {[%clk 0:01:14]} 25. Qxa5 {[%clk 0:00:13]}  f5 {[%clk 0:01:04]} 26. Qc5 {[%clk 0:00:11]}  Ref7 {[%clk 0:01:02]} 27. Rxe5 {[%clk 0:00:09]}  Qg3 {[%clk 0:00:55]} 28. Qf2 {[%clk 0:00:09]}  Qg6 {[%clk 0:00:52]} 29. Re7 {[%clk 0:00:08]}  f4 {[%clk 0:00:47]} 30. Rxf7 {[%clk 0:00:08]}  Qxf7 {[%clk 0:00:45]} 31. Bf3 {[%clk 0:00:07]}  Bxh3 {[%clk 0:00:44]} 32. Kh1 {[%clk 0:00:06]}  Qf6 {[%clk 0:00:37]} 33. Ne4 {[%clk 0:00:06]}  Qh6 {[%clk 0:00:37]} 34. Qh2 {[%clk 0:00:06]}  Qh4 {[%clk 0:00:37]} 35. Rg1 {[%clk 0:00:05]}  Kh8 {[%clk 0:00:34]} 36. Ng5 {[%clk 0:00:05]}  Re8 {[%clk 0:00:23]} 37. Qxh3 {[%clk 0:00:04]}  Qxh3+ {[%clk 0:00:23]} 38. Nxh3 {[%clk 0:00:04]}  Re3 {[%clk 0:00:24]} 39. Rf1 {[%clk 0:00:04]}  h6 {[%clk 0:00:23]} 40. Nxf4 {[%clk 0:00:04]}  g5 {[%clk 0:00:23]} 41. d6 {[%clk 0:00:04]}  gxf4 {[%clk 0:00:21]} 42. d7 {[%clk 0:00:04]}  Rd3 {[%clk 0:00:20]} 43. Bd5 {[%clk 0:00:05]}  Rh3+ {[%clk 0:00:16]} 44. Kg2 {[%clk 0:00:05]}  Rg3+ {[%clk 0:00:05]} 45. Kf2 {[%clk 0:00:05]} 1-0


[Site "https://www.chess.com"]

[Event "Titled Tuesday Blitz August 22 Late 2023"]
[White "Navyblue1"]
[Black "Deviprasath, Sharvesh"]
[BlackFideId "30938228"]
[WhiteElo "2035"]
[BlackElo "2486"]
[Result "0-1"]
[Round "7"]
[TimeControl "180+1"]
[Date "2023.08.22"]
[WhiteClock "0:00:14"]
[BlackClock "0:01:03"]
[Board "150"]

1. d4 {[%clk 0:03:00]}  d5 {[%clk 0:02:24]} 2. c4 {[%clk 0:02:58]}  Nc6 {[%clk 0:02:22]} 3. cxd5 {[%clk 0:02:44]}  Qxd5 {[%clk 0:02:23]} 4. e3 {[%clk 0:02:42]}  e5 {[%clk 0:02:20]} 5. Nc3 {[%clk 0:02:40]}  Bb4 {[%clk 0:02:20]} 6. Bd2 {[%clk 0:02:39]}  Bxc3 {[%clk 0:02:20]} 7. Bxc3 {[%clk 0:02:39]}  exd4 {[%clk 0:02:18]} 8. exd4 {[%clk 0:02:33]}  Nf6 {[%clk 0:02:16]} 9. Nf3 {[%clk 0:02:32]}  Bg4 {[%clk 0:02:16]} 10. Be2 {[%clk 0:02:31]}  O-O-O {[%clk 0:02:16]} 11. O-O {[%clk 0:02:25]}  Rhe8 {[%clk 0:02:15]} 12. h3 {[%clk 0:02:14]}  Bh5 {[%clk 0:02:13]} 13. Re1 {[%clk 0:02:04]}  g5 {[%clk 0:02:05]} 14. Qd2 {[%clk 0:01:37]}  Ne4 {[%clk 0:01:41]} 15. Qd3 {[%clk 0:01:35]}  f5 {[%clk 0:01:34]} 16. Nd2 {[%clk 0:00:53]}  Bxe2 {[%clk 0:01:32]} 17. Rxe2 {[%clk 0:00:50]}  Nc5 {[%clk 0:01:32]} 18. Qb5 {[%clk 0:00:39]}  a6 {[%clk 0:01:22]} 19. Qxc5 {[%clk 0:00:28]}  Qxc5 {[%clk 0:01:19]} 20. dxc5 {[%clk 0:00:29]}  Rxe2 {[%clk 0:01:19]} 21. Kf1 {[%clk 0:00:21]}  Rdxd2 {[%clk 0:01:05]} 22. Bxd2 {[%clk 0:00:17]}  Rxd2 {[%clk 0:01:06]} 23. Rb1 {[%clk 0:00:14]}  Rc2 {[%clk 0:01:03]} 0-1


[Site "https://www.chess.com"]

[Event "Titled Tuesday Blitz August 22 Late 2023"]
[White "Bazzano, Sebastian"]
[Black "ArchibaldCerveza29"]
[WhiteFideId "104566"]
[WhiteElo "2232"]
[BlackElo "2440"]
[Result "0-1"]
[Round "7"]
[TimeControl "180+1"]
[Date "2023.08.22"]
[WhiteClock "0:00:00"]
[BlackClock "0:00:41"]
[Board "152"]

1. d4 {[%clk 0:02:58]}  Nf6 {[%clk 0:02:59]} 2. Bf4 {[%clk 0:02:57]}  c5 {[%clk 0:02:57]} 3. dxc5 {[%clk 0:02:55]}  Nc6 {[%clk 0:02:51]} 4. c3 {[%clk 0:02:53]}  a5 {[%clk 0:02:45]} 5. Nf3 {[%clk 0:02:52]}  g6 {[%clk 0:02:45]} 6. e3 {[%clk 0:02:48]}  Bg7 {[%clk 0:02:45]} 7. Bd3 {[%clk 0:02:47]}  O-O {[%clk 0:02:46]} 8. O-O {[%clk 0:02:46]}  Re8 {[%clk 0:02:46]} 9. Ne5 {[%clk 0:02:36]}  Nd5 {[%clk 0:02:15]} 10. Nxc6 {[%clk 0:02:14]}  dxc6 {[%clk 0:02:10]} 11. Bg3 {[%clk 0:02:13]}  e5 {[%clk 0:02:06]} 12. Na3 {[%clk 0:02:07]}  Qe7 {[%clk 0:01:56]} 13. e4 {[%clk 0:01:49]}  Nf4 {[%clk 0:01:52]} 14. Bc4 {[%clk 0:01:40]}  Qxc5 {[%clk 0:01:46]} 15. Qb3 {[%clk 0:01:39]}  Ne6 {[%clk 0:01:38]} 16. Rad1 {[%clk 0:01:32]}  b5 {[%clk 0:01:37]} 17. Be2 {[%clk 0:01:29]}  Nf4 {[%clk 0:01:36]} 18. Bf3 {[%clk 0:01:19]}  Be6 {[%clk 0:01:33]} 19. Qc2 {[%clk 0:01:16]}  h5 {[%clk 0:01:14]} 20. Bxf4 {[%clk 0:01:00]}  exf4 {[%clk 0:01:15]} 21. Qd2 {[%clk 0:01:00]}  b4 {[%clk 0:01:11]} 22. cxb4 {[%clk 0:00:49]}  axb4 {[%clk 0:01:12]} 23. Nc2 {[%clk 0:00:43]}  Rxa2 {[%clk 0:01:10]} 24. Nxb4 {[%clk 0:00:28]}  Rxb2 {[%clk 0:01:07]} 25. Nd3 {[%clk 0:00:25]}  Rxd2 {[%clk 0:01:04]} 26. Nxc5 {[%clk 0:00:24]}  Rxd1 {[%clk 0:01:04]} 27. Rxd1 {[%clk 0:00:25]}  Bg4 {[%clk 0:01:00]} 28. Rd6 {[%clk 0:00:13]}  Ra8 {[%clk 0:00:59]} 29. h3 {[%clk 0:00:13]}  Bxf3 {[%clk 0:00:58]} 30. gxf3 {[%clk 0:00:14]}  Ra1+ {[%clk 0:00:58]} 31. Kg2 {[%clk 0:00:14]}  Be5 {[%clk 0:00:51]} 32. Rxc6 {[%clk 0:00:12]}  Ra2 {[%clk 0:00:50]} 33. Nd3 {[%clk 0:00:08]}  Bd4 {[%clk 0:00:47]} 34. Rc4 {[%clk 0:00:07]}  Bb6 {[%clk 0:00:44]} 35. Rc6 {[%clk 0:00:06]}  Be3 {[%clk 0:00:43]} 36. Kg1 {[%clk 0:00:02]}  Ra1+ {[%clk 0:00:42]} 37. Kg2 {[%clk 0:00:02]}  Ra2 {[%clk 0:00:42]} 38. Kg1 {[%clk 0:00:00]}  Ba7 {[%clk 0:00:41]} 0-1


[Site "https://www.chess.com"]